[Event "Early-Titled-Tuesday-Blitz-May-28-2024"]
[Site "Chess.com"]
[Date "2024.05.28"]
[Round "4"]
[White "gpsji27"]
[Black "jlf287"]
[Result "0-1"]
[WhiteElo "2306"]
[BlackElo "2496"]
[TimeControl "180+1"]
[EndTime "8:40:31 PDT"]
[Termination "jlf287 won by resignation"]

1. d4 {[%clk 0:03:00.9]} 1... d5 {[%clk 0:02:58.7]} 2. c4 {[%clk 0:02:59.6]}
2... e6 {[%clk 0:02:59.1]} 3. Nc3 {[%clk 0:02:59.3]} 3... Nf6 {[%clk 0:02:58.8]}
4. Bg5 {[%clk 0:02:59.2]} 4... Be7 {[%clk 0:02:56.2]} 5. e3 {[%clk 0:02:57.2]}
5... O-O {[%clk 0:02:55.9]} 6. Nf3 {[%clk 0:02:33]} 6... h6 {[%clk 0:02:55.5]}
7. Bh4 {[%clk 0:02:32.8]} 7... b6 {[%clk 0:02:55.4]} 8. Rc1 {[%clk 0:02:31.9]}
8... Bb7 {[%clk 0:02:54.9]} 9. Bd3 {[%clk 0:02:30.1]} 9... Nbd7 {[%clk
0:02:47.3]} 10. O-O {[%clk 0:02:28.8]} 10... dxc4 {[%clk 0:02:40.6]} 11. Bxc4
{[%clk 0:02:29.5]} 11... c5 {[%clk 0:02:41.5]} 12. Bd3 {[%clk 0:02:27.9]} 12...
cxd4 {[%clk 0:02:40.6]} 13. Nxd4 {[%clk 0:02:23.6]} 13... a6 {[%clk 0:02:29.3]}
14. Bb1 {[%clk 0:02:19.9]} 14... Rc8 {[%clk 0:02:14]} 15. Qe2 {[%clk 0:02:06.7]}
15... b5 {[%clk 0:02:12.9]} 16. Rfd1 {[%clk 0:02:03.6]} 16... Qb6 {[%clk
0:02:02.7]} 17. e4 {[%clk 0:01:46.4]} 17... Ne5 {[%clk 0:01:44.1]} 18. Kh1
{[%clk 0:01:01]} 18... Ng6 {[%clk 0:01:35.3]} 19. Bg3 {[%clk 0:00:57.7]} 19...
e5 {[%clk 0:01:33.3]} 20. Nf5 {[%clk 0:00:56]} 20... Rfe8 {[%clk 0:01:23.2]} 21.
a3 {[%clk 0:00:41.4]} 21... Bf8 {[%clk 0:01:23.3]} 22. Ba2 {[%clk 0:00:39.5]}
22... Rc7 {[%clk 0:01:03.7]} 23. f3 {[%clk 0:00:23.4]} 23... Bc8 {[%clk
0:00:30.4]} 24. Ne3 {[%clk 0:00:19.3]} 24... Be6 {[%clk 0:00:27.6]} 25. Ncd5
{[%clk 0:00:18.3]} 25... Bxd5 {[%clk 0:00:25.5]} 26. Nxd5 {[%clk 0:00:19.2]}
26... Nxd5 {[%clk 0:00:25.4]} 27. Bxd5 {[%clk 0:00:19.5]} 27... Rec8 {[%clk
0:00:23.9]} 28. Bf2 {[%clk 0:00:16.5]} 28... Bc5 {[%clk 0:00:21.1]} 29. Bxc5
{[%clk 0:00:14.8]} 29... Rxc5 {[%clk 0:00:21.3]} 30. Rxc5 {[%clk 0:00:15.4]}
30... Qxc5 {[%clk 0:00:21.8]} 31. b4 {[%clk 0:00:08.6]} 31... Qc2 {[%clk
0:00:15]} 32. Qxc2 {[%clk 0:00:08.7]} 32... Rxc2 {[%clk 0:00:15.9]} 33. g3
{[%clk 0:00:09.3]} 33... Rc3 {[%clk 0:00:14.6]} 34. Ba2 {[%clk 0:00:04.9]} 34...
Rxa3 {[%clk 0:00:13.8]} 35. Rd8+ {[%clk 0:00:05.3]} 35... Kh7 {[%clk 0:00:13.9]}
36. Bxf7 {[%clk 0:00:05.6]} 36... Ne7 {[%clk 0:00:11.5]} 37. Re8 {[%clk
0:00:05.5]} 37... Rxf3 {[%clk 0:00:05.5]} 38. Rxe7 {[%clk 0:00:04.5]} 38... Rf6
{[%clk 0:00:02.7]} 39. Bd5 {[%clk 0:00:04.3]} 39... Rb6 {[%clk 0:00:01.7]} 40.
Re6 {[%clk 0:00:04]} 40... Rb8 {[%clk 0:00:01.6]} 41. Rb6 {[%clk 0:00:03.6]}
41... Rxb6 {[%clk 0:00:01.6]} 42. Kg2 {[%clk 0:00:03.3]} 42... Rd6 {[%clk
0:00:02.2]} 43. Kf3 {[%clk 0:00:03.5]} 43... g6 {[%clk 0:00:02.9]} 44. Ke3
{[%clk 0:00:03.7]} 44... Kg7 {[%clk 0:00:03.8]} 45. h4 {[%clk 0:00:03.6]} 45...
Kf6 {[%clk 0:00:04.3]} 46. g4 {[%clk 0:00:04.2]} 46... g5 {[%clk 0:00:04.7]} 47.
h5 {[%clk 0:00:04.6]} 47... Ke7 {[%clk 0:00:05.2]} 48. Kd3 {[%clk 0:00:04]}
48... Rd8 {[%clk 0:00:04.1]} 49. Ke3 {[%clk 0:00:04.5]} 49... Rc8 {[%clk
0:00:04.3]} 50. Kd3 {[%clk 0:00:04.7]} 0-1

[Event "Early-Titled-Tuesday-Blitz-May-28-2024"]
[Site "Chess.com"]
[Date "2024.05.28"]
[Round "4"]
[White "FrenchPlayer2203"]
[Black "RedFirePanda"]
[Result "0-1"]
[WhiteElo "2087"]
[BlackElo "2436"]
[TimeControl "180+1"]
[EndTime "8:40:32 PDT"]
[Termination "RedFirePanda won on time"]

1. d4 {[%clk 0:03:00.9]} 1... d5 {[%clk 0:03:00.9]} 2. c4 {[%clk 0:03:00.3]}
2... dxc4 {[%clk 0:03:00.3]} 3. e3 {[%clk 0:03:00.2]} 3... Nf6 {[%clk
0:02:59.8]} 4. Bxc4 {[%clk 0:02:59.7]} 4... c6 {[%clk 0:02:52.5]} 5. Nf3 {[%clk
0:02:54.9]} 5... Bg4 {[%clk 0:02:51.6]} 6. Qb3 {[%clk 0:02:51.9]} 6... e6 {[%clk
0:02:48.1]} 7. Qxb7 {[%clk 0:02:46.1]} 7... Nbd7 {[%clk 0:02:47.8]} 8. Qb3
{[%clk 0:02:45.3]} 8... Rb8 {[%clk 0:02:43.7]} 9. Qd1 {[%clk 0:02:37.6]} 9...
Bb4+ {[%clk 0:02:34.5]} 10. Nc3 {[%clk 0:02:36.2]} 10... Ne4 {[%clk 0:02:30.8]}
11. Bd2 {[%clk 0:02:13.3]} 11... Nxd2 {[%clk 0:02:28.1]} 12. Qxd2 {[%clk
0:02:12.6]} 12... O-O {[%clk 0:02:21.7]} 13. Be2 {[%clk 0:02:04]} 13... Qa5
{[%clk 0:02:17.4]} 14. O-O {[%clk 0:01:53.3]} 14... Nf6 {[%clk 0:02:17.7]} 15.
Qc2 {[%clk 0:01:26.3]} 15... Rfc8 {[%clk 0:02:05.3]} 16. a3 {[%clk 0:01:21.1]}
16... Bd6 {[%clk 0:02:01.8]} 17. b4 {[%clk 0:01:16.2]} 17... Qc7 {[%clk
0:01:59.3]} 18. h3 {[%clk 0:01:13.6]} 18... Bf5 {[%clk 0:01:56.9]} 19. Qd2
{[%clk 0:01:05.6]} 19... Nd5 {[%clk 0:01:46.9]} 20. Rfc1 {[%clk 0:00:55.5]}
20... Qe7 {[%clk 0:01:40]} 21. Bd3 {[%clk 0:00:44.4]} 21... Bg6 {[%clk
0:01:22.7]} 22. Bxg6 {[%clk 0:00:31.8]} 22... hxg6 {[%clk 0:01:23.6]} 23. Nxd5
{[%clk 0:00:28.1]} 23... cxd5 {[%clk 0:01:22.9]} 24. Rxc8+ {[%clk 0:00:19.1]}
24... Rxc8 {[%clk 0:01:23.8]} 25. Rc1 {[%clk 0:00:19.3]} 25... Rb8 {[%clk
0:01:24.1]} 26. Ne1 {[%clk 0:00:17.2]} 26... a5 {[%clk 0:01:22.3]} 27. bxa5
{[%clk 0:00:11.8]} 27... Bxa3 {[%clk 0:01:22.4]} 28. Nd3 {[%clk 0:00:12]} 28...
Bxc1 {[%clk 0:01:22.4]} 29. Qxc1 {[%clk 0:00:10.8]} 29... Ra8 {[%clk 0:01:21.4]}
30. Qc3 {[%clk 0:00:09.7]} 30... Qa7 {[%clk 0:01:21.2]} 31. Kh2 {[%clk 0:00:09]}
31... Qxa5 {[%clk 0:01:21.5]} 32. Qxa5 {[%clk 0:00:08.6]} 32... Rxa5 {[%clk
0:01:22.4]} 33. Ne5 {[%clk 0:00:07.5]} 33... Ra2 {[%clk 0:01:21.8]} 34. Kg3
{[%clk 0:00:07.4]} 34... Kf8 {[%clk 0:01:19.1]} 35. f3 {[%clk 0:00:07]} 35...
Ke7 {[%clk 0:01:16.5]} 36. h4 {[%clk 0:00:07]} 36... Kf6 {[%clk 0:01:10]} 37.
Ng4+ {[%clk 0:00:06.6]} 37... Kf5 {[%clk 0:01:05.6]} 38. Ne5 {[%clk 0:00:04.7]}
38... f6 {[%clk 0:01:03.8]} 39. Ng4 {[%clk 0:00:04.3]} 39... g5 {[%clk
0:01:01.7]} 40. h5 {[%clk 0:00:04.5]} 40... e5 {[%clk 0:00:58.6]} 41. dxe5
{[%clk 0:00:03.7]} 41... fxe5 {[%clk 0:00:59.5]} 42. Nf2 {[%clk 0:00:03.2]}
42... d4 {[%clk 0:00:57.2]} 43. e4+ {[%clk 0:00:02.7]} 43... Ke6 {[%clk
0:00:56.1]} 44. Nd3 {[%clk 0:00:02.8]} 44... Ra3 {[%clk 0:00:54.7]} 45. Nc5+
{[%clk 0:00:02.4]} 45... Kd6 {[%clk 0:00:55.2]} 46. Nb7+ {[%clk 0:00:02.4]}
46... Kc7 {[%clk 0:00:52.1]} 47. Nc5 {[%clk 0:00:02.2]} 47... d3 {[%clk
0:00:52.6]} 48. Kf2 {[%clk 0:00:01.9]} 48... Kc6 {[%clk 0:00:46.4]} 49. Ne6
{[%clk 0:00:01.4]} 49... Kb5 {[%clk 0:00:42.9]} 50. Nxg7 {[%clk 0:00:01]} 50...
Kc4 {[%clk 0:00:39]} 51. Nf5 {[%clk 0:00:01]} 51... Kc3 {[%clk 0:00:34]} 52. Ne3
{[%clk 0:00:01]} 52... d2 {[%clk 0:00:31]} 53. Ke2 {[%clk 0:00:01]} 53... Ra1
{[%clk 0:00:31.2]} 54. h6 {[%clk 0:00:01]} 54... Re1+ {[%clk 0:00:30.5]} 55. Kf2
{[%clk 0:00:01.4]} 55... d1=Q {[%clk 0:00:25.7]} 56. Nxd1+ {[%clk 0:00:01.3]}
56... Rxd1 {[%clk 0:00:26.6]} 57. Kg3 {[%clk 0:00:01.6]} 57... Rd6 {[%clk
0:00:24.9]} 58. Kg4 {[%clk 0:00:01.7]} 58... Rxh6 {[%clk 0:00:24.7]} 59. Kxg5
{[%clk 0:00:02.2]} 59... Rh2 {[%clk 0:00:24.2]} 60. g3 {[%clk 0:00:02.1]} 60...
Rf2 {[%clk 0:00:23.6]} 61. f4 {[%clk 0:00:02.3]} 61... Kd4 {[%clk 0:00:23.5]}
62. f5 {[%clk 0:00:02.1]} 62... Kxe4 {[%clk 0:00:23.4]} 63. f6 {[%clk
0:00:02.6]} 63... Kd5 {[%clk 0:00:24]} 64. Kg6 {[%clk 0:00:02.8]} 64... Ke6
{[%clk 0:00:24.4]} 0-1

[Event "Early-Titled-Tuesday-Blitz-May-28-2024"]
[Site "Chess.com"]
[Date "2024.05.28"]
[Round "4"]
[White "Triumphmate"]
[Black "toniv1"]
[Result "1-0"]
[WhiteElo "2490"]
[BlackElo "2235"]
[TimeControl "180+1"]
[EndTime "8:40:32 PDT"]
[Termination "Triumphmate won by resignation"]

1. e4 {[%clk 0:03:00.9]} 1... Nf6 {[%clk 0:03:00.9]} 2. Nc3 {[%clk 0:03:00.5]}
2... d6 {[%clk 0:02:56.7]} 3. d4 {[%clk 0:02:57.1]} 3... g6 {[%clk 0:02:54.9]}
4. Be3 {[%clk 0:02:49.6]} 4... Bg7 {[%clk 0:02:55.1]} 5. Qd2 {[%clk 0:02:50]}
5... a6 {[%clk 0:02:52.5]} 6. O-O-O {[%clk 0:02:50.5]} 6... b5 {[%clk
0:02:52.4]} 7. f3 {[%clk 0:02:50]} 7... Nbd7 {[%clk 0:02:51.1]} 8. h4 {[%clk
0:02:50.3]} 8... h5 {[%clk 0:02:50]} 9. Nh3 {[%clk 0:02:50.2]} 9... Bb7 {[%clk
0:02:47]} 10. Ng5 {[%clk 0:02:49.4]} 10... c5 {[%clk 0:02:47.2]} 11. dxc5 {[%clk
0:02:45.9]} 11... dxc5 {[%clk 0:02:39.4]} 12. f4 {[%clk 0:01:54.8]} 12... O-O
{[%clk 0:02:27.8]} 13. e5 {[%clk 0:01:50.9]} 13... Ng4 {[%clk 0:02:27.7]} 14.
Be2 {[%clk 0:01:24.4]} 14... Nxe3 {[%clk 0:02:16.5]} 15. Qxe3 {[%clk 0:01:23.3]}
15... e6 {[%clk 0:02:12.2]} 16. Rd6 {[%clk 0:01:14.1]} 16... Qc7 {[%clk
0:02:06.5]} 17. Bxh5 {[%clk 0:00:57.3]} 17... Nb6 {[%clk 0:01:38.5]} 18. Rhd1
{[%clk 0:00:29.6]} 18... Nc4 {[%clk 0:01:27.2]} 19. Qh3 {[%clk 0:00:22.6]} 19...
gxh5 {[%clk 0:01:13.4]} 20. Qd3 {[%clk 0:00:11]} 20... f5 {[%clk 0:01:03.2]} 21.
Nxe6 {[%clk 0:00:03.7]} 21... Qf7 {[%clk 0:00:55.6]} 22. Nxg7 {[%clk 0:00:02.5]}
22... Nxd6 {[%clk 0:00:52.1]} 23. Nxh5 {[%clk 0:00:02.2]} 23... Ne4 {[%clk
0:00:45]} 24. Nxe4 {[%clk 0:00:02.3]} 24... Bxe4 {[%clk 0:00:45.6]} 25. Qg3+
{[%clk 0:00:02.7]} 25... Kh8 {[%clk 0:00:45.6]} 26. Qg5 {[%clk 0:00:01]} 26...
Qh7 {[%clk 0:00:29.7]} 27. Rd6 {[%clk 0:00:01.4]} 27... Bf3 {[%clk 0:00:14.7]}
28. Rh6 {[%clk 0:00:01.9]} 28... Bxh5 {[%clk 0:00:14.1]} 29. Rxh7+ {[%clk
0:00:01.4]} 29... Kxh7 {[%clk 0:00:15]} 30. Qxh5+ {[%clk 0:00:02.3]} 30... Kg7
{[%clk 0:00:15.9]} 31. Qg5+ {[%clk 0:00:03.2]} 31... Kf7 {[%clk 0:00:16.7]} 32.
Qf6+ {[%clk 0:00:03.6]} 32... Ke8 {[%clk 0:00:16.2]} 33. Qe6+ {[%clk 0:00:04.5]}
33... Kd8 {[%clk 0:00:16.5]} 34. Qd6+ {[%clk 0:00:05.4]} 34... Ke8 {[%clk
0:00:17]} 35. e6 {[%clk 0:00:05.9]} 35... Rd8 {[%clk 0:00:15.8]} 36. Qc6+ {[%clk
0:00:06.5]} 36... Ke7 {[%clk 0:00:16.7]} 37. Qxc5+ {[%clk 0:00:06.8]} 37... Kxe6
{[%clk 0:00:17]} 38. Qe5+ {[%clk 0:00:07.5]} 38... Kf7 {[%clk 0:00:17.2]} 39.
Qxf5+ {[%clk 0:00:07.4]} 39... Ke7 {[%clk 0:00:18]} 40. Qe5+ {[%clk 0:00:07.7]}
40... Kd7 {[%clk 0:00:17.8]} 41. f5 {[%clk 0:00:07.8]} 41... Rde8 {[%clk
0:00:17.7]} 42. Qd5+ {[%clk 0:00:07.6]} 42... Kc7 {[%clk 0:00:17.7]} 43. b3
{[%clk 0:00:08.5]} 43... Rf6 {[%clk 0:00:16.1]} 44. g4 {[%clk 0:00:08.1]} 44...
Rd6 {[%clk 0:00:15.7]} 45. Qc5+ {[%clk 0:00:08.3]} 45... Kd7 {[%clk 0:00:15.5]}
46. h5 {[%clk 0:00:07.7]} 46... Re1+ {[%clk 0:00:14.6]} 47. Kb2 {[%clk
0:00:08.3]} 47... Re2 {[%clk 0:00:11.8]} 48. Qa7+ {[%clk 0:00:08.9]} 48... Kd8
{[%clk 0:00:11]} 49. Qb8+ {[%clk 0:00:09.3]} 49... Kd7 {[%clk 0:00:11.3]} 50.
Qb7+ {[%clk 0:00:09.4]} 50... Kd8 {[%clk 0:00:11.6]} 51. g5 {[%clk 0:00:08.9]}
51... Rdd2 {[%clk 0:00:11.5]} 52. Qc6 {[%clk 0:00:08.7]} 52... a5 {[%clk
0:00:11.2]} 53. a4 {[%clk 0:00:08]} 53... b4 {[%clk 0:00:11.2]} 54. f6 {[%clk
0:00:07.3]} 54... Rd1 {[%clk 0:00:11.8]} 55. Qb6+ {[%clk 0:00:06.3]} 55... Kd7
{[%clk 0:00:11.1]} 56. Qb5+ {[%clk 0:00:06.7]} 56... Kd8 {[%clk 0:00:10.6]} 57.
Qxe2 {[%clk 0:00:07.6]} 1-0

[Event "Early-Titled-Tuesday-Blitz-May-28-2024"]
[Site "Chess.com"]
[Date "2024.05.28"]
[Round "4"]
[White "Navyblue1"]
[Black "Actuary44"]
[Result "0-1"]
[WhiteElo "2245"]
[BlackElo "2462"]
[TimeControl "180+1"]
[EndTime "8:40:33 PDT"]
[Termination "Actuary44 won by resignation"]

1. d4 {[%clk 0:02:59.1]} 1... Nf6 {[%clk 0:02:59.6]} 2. c4 {[%clk 0:02:58.4]}
2... g6 {[%clk 0:03:00.2]} 3. Nc3 {[%clk 0:02:57.3]} 3... Bg7 {[%clk 0:03:00.8]}
4. e4 {[%clk 0:02:55.3]} 4... d6 {[%clk 0:03:01.3]} 5. Nf3 {[%clk 0:02:55.4]}
5... O-O {[%clk 0:03:01.9]} 6. Bg5 {[%clk 0:02:55.2]} 6... c5 {[%clk 0:03:01.5]}
7. d5 {[%clk 0:02:54.6]} 7... Na6 {[%clk 0:03:02]} 8. Qd2 {[%clk 0:02:54.5]}
8... Nc7 {[%clk 0:03:02.3]} 9. h4 {[%clk 0:02:50.2]} 9... h5 {[%clk 0:03:01.7]}
10. Be2 {[%clk 0:02:48.3]} 10... a6 {[%clk 0:03:01.2]} 11. a4 {[%clk 0:02:44.7]}
11... Rb8 {[%clk 0:03:01.1]} 12. a5 {[%clk 0:02:33.2]} 12... b5 {[%clk
0:02:59.2]} 13. axb6 {[%clk 0:02:31.4]} 13... Rxb6 {[%clk 0:02:58.9]} 14. Nh2
{[%clk 0:02:19.9]} 14... Bd7 {[%clk 0:02:55.1]} 15. Nf1 {[%clk 0:02:06.9]} 15...
Qb8 {[%clk 0:02:53]} 16. Ra2 {[%clk 0:02:04.6]} 16... e6 {[%clk 0:02:49.8]} 17.
Ne3 {[%clk 0:02:03.7]} 17... exd5 {[%clk 0:02:49.7]} 18. exd5 {[%clk 0:01:56.7]}
18... Re8 {[%clk 0:02:47.5]} 19. O-O {[%clk 0:01:53.6]} 19... Ne4 {[%clk
0:02:31.2]} 20. Nxe4 {[%clk 0:01:53.4]} 20... Rxe4 {[%clk 0:02:32.1]} 21. Bd3
{[%clk 0:01:53.4]} 21... Re8 {[%clk 0:02:09.9]} 22. Rb1 {[%clk 0:01:51.4]} 22...
Qb7 {[%clk 0:01:41.3]} 23. Nd1 {[%clk 0:01:31.7]} 23... Rb8 {[%clk 0:01:38.6]}
24. Bh6 {[%clk 0:01:25.8]} 24... Ne8 {[%clk 0:01:31.9]} 25. Bxg7 {[%clk
0:01:25.1]} 25... Nxg7 {[%clk 0:01:30.7]} 26. Ne3 {[%clk 0:01:24.8]} 26... Qc8
{[%clk 0:01:26.7]} 27. Qc2 {[%clk 0:01:22]} 27... Qd8 {[%clk 0:01:25.9]} 28. g3
{[%clk 0:01:14.7]} 28... Qf6 {[%clk 0:01:25.8]} 29. b3 {[%clk 0:01:13.5]} 29...
Bh3 {[%clk 0:01:20.6]} 30. Bf1 {[%clk 0:00:59.1]} 30... Bf5 {[%clk 0:01:19.3]}
31. Bd3 {[%clk 0:00:58.7]} 31... Bh3 {[%clk 0:01:09.3]} 32. Bf1 {[%clk
0:00:58.3]} 32... Bxf1 {[%clk 0:01:09.4]} 33. Kxf1 {[%clk 0:00:51.6]} 33... Qf3
{[%clk 0:01:03.2]} 34. Kg1 {[%clk 0:00:47.7]} 34... Ne8 {[%clk 0:00:46.3]} 35.
Rab2 {[%clk 0:00:34.3]} 35... Nf6 {[%clk 0:00:44.6]} 36. Qd1 {[%clk 0:00:29.6]}
36... Qxd1+ {[%clk 0:00:33.4]} 37. Nxd1 {[%clk 0:00:28.6]} 37... Ne4 {[%clk
0:00:33.6]} 38. Kg2 {[%clk 0:00:20.5]} 38... a5 {[%clk 0:00:30.4]} 39. f3 {[%clk
0:00:19.8]} 39... Nf6 {[%clk 0:00:28.4]} 40. Kf2 {[%clk 0:00:19.9]} 40... Nd7
{[%clk 0:00:24.2]} 41. Nc3 {[%clk 0:00:18.8]} 41... Ne5 {[%clk 0:00:23.8]} 42.
Na4 {[%clk 0:00:17]} 42... Rb4 {[%clk 0:00:17.9]} 43. Ke3 {[%clk 0:00:16.5]}
43... Re8 {[%clk 0:00:13.8]} 44. Kd2 {[%clk 0:00:13.3]} 44... Nxf3+ {[%clk
0:00:11.1]} 45. Kd3 {[%clk 0:00:13.4]} 45... Ne5+ {[%clk 0:00:10.3]} 46. Kd2
{[%clk 0:00:13.2]} 46... Rxa4 {[%clk 0:00:09]} 47. bxa4 {[%clk 0:00:12.6]} 47...
Nxc4+ {[%clk 0:00:09.4]} 48. Kc3 {[%clk 0:00:12.5]} 48... Nxb2 {[%clk 0:00:10]}
49. Rxb2 {[%clk 0:00:12.7]} 49... Re3+ {[%clk 0:00:10.1]} 50. Kc4 {[%clk
0:00:13.5]} 50... Re4+ {[%clk 0:00:05.1]} 51. Kb5 {[%clk 0:00:12.5]} 51... Rb4+
{[%clk 0:00:05.2]} 52. Rxb4 {[%clk 0:00:11.8]} 52... cxb4 {[%clk 0:00:05.8]} 53.
Kxa5 {[%clk 0:00:11.5]} 53... b3 {[%clk 0:00:06.5]} 54. g4 {[%clk 0:00:09.3]}
54... b2 {[%clk 0:00:06.9]} 55. gxh5 {[%clk 0:00:08.9]} 55... gxh5 {[%clk
0:00:06.7]} 56. Ka6 {[%clk 0:00:08.6]} 56... b1=Q {[%clk 0:00:06.7]} 57. a5
{[%clk 0:00:09.5]} 57... Qd3+ {[%clk 0:00:06.8]} 58. Ka7 {[%clk 0:00:09.9]}
58... Qxd5 {[%clk 0:00:07.6]} 59. a6 {[%clk 0:00:10.1]} 59... Qb5 {[%clk
0:00:07.4]} 60. Ka8 {[%clk 0:00:10.2]} 60... Qxa6+ {[%clk 0:00:07.4]} 61. Kb8
{[%clk 0:00:11.1]} 61... d5 {[%clk 0:00:07.7]} 0-1

[Event "Early-Titled-Tuesday-Blitz-May-28-2024"]
[Site "Chess.com"]
[Date "2024.05.28"]
[Round "4"]
[White "RantomOpening"]
[Black "eagleclaw07"]
[Result "0-1"]
[WhiteElo "2575"]
[BlackElo "2832"]
[TimeControl "180+1"]
[EndTime "8:40:37 PDT"]
[Termination "eagleclaw07 won by resignation"]

1. c4 {[%clk 0:03:00.2]} 1... Nf6 {[%clk 0:02:59.8]} 2. Nf3 {[%clk 0:02:58.4]}
2... g6 {[%clk 0:03:00.2]} 3. Nc3 {[%clk 0:02:58.5]} 3... Bg7 {[%clk 0:03:00.7]}
4. e4 {[%clk 0:02:58.9]} 4... d6 {[%clk 0:03:00.2]} 5. d4 {[%clk 0:02:59.1]}
5... O-O {[%clk 0:03:00.5]} 6. Be2 {[%clk 0:02:59.6]} 6... Nc6 {[%clk 0:03:01]}
7. Be3 {[%clk 0:02:59.9]} 7... e5 {[%clk 0:02:57.3]} 8. O-O {[%clk 0:02:59.7]}
8... Ng4 {[%clk 0:02:56.8]} 9. Bg5 {[%clk 0:02:59.9]} 9... f6 {[%clk 0:02:57.2]}
10. Bc1 {[%clk 0:03:00.6]} 10... f5 {[%clk 0:02:56.3]} 11. exf5 {[%clk 0:02:56]}
11... gxf5 {[%clk 0:02:37.9]} 12. dxe5 {[%clk 0:02:53.2]} 12... Ncxe5 {[%clk
0:02:35.7]} 13. Nxe5 {[%clk 0:02:35.7]} 13... Nxe5 {[%clk 0:02:33]} 14. Bf4
{[%clk 0:02:32.6]} 14... Kh8 {[%clk 0:02:30.5]} 15. Qd2 {[%clk 0:02:31.2]} 15...
Be6 {[%clk 0:02:30.4]} 16. b3 {[%clk 0:02:28.8]} 16... Qf6 {[%clk 0:02:17.1]}
17. Rad1 {[%clk 0:02:24.5]} 17... Rae8 {[%clk 0:02:09.6]} 18. Nb5 {[%clk
0:02:18.2]} 18... Rf7 {[%clk 0:02:01.8]} 19. Bxe5 {[%clk 0:02:13.1]} 19... dxe5
{[%clk 0:01:40.6]} 20. Bh5 {[%clk 0:01:50.1]} 20... Bh6 {[%clk 0:01:39.7]} 21.
Qb4 {[%clk 0:01:38.5]} 21... Rg8 {[%clk 0:01:31.6]} 22. Bxf7 {[%clk 0:01:37.4]}
22... Qxf7 {[%clk 0:01:06.9]} 23. Qc5 {[%clk 0:01:36.4]} 23... Qg7 {[%clk
0:01:06.8]} 24. g3 {[%clk 0:01:34.7]} 24... c6 {[%clk 0:01:06.1]} 25. Nd6 {[%clk
0:01:29.5]} 25... f4 {[%clk 0:01:00.2]} 26. Rfe1 {[%clk 0:01:27.3]} 26... fxg3
{[%clk 0:01:00.1]} 27. hxg3 {[%clk 0:01:26.2]} 27... Bf4 {[%clk 0:00:59.7]} 28.
Ne4 {[%clk 0:00:41.7]} 28... Bf5 {[%clk 0:00:52.9]} 29. Rd3 {[%clk 0:00:23.3]}
29... Qg6 {[%clk 0:00:49.8]} 30. Qd6 {[%clk 0:00:19.6]} 30... Bxe4 {[%clk
0:00:48]} 31. Rxe4 {[%clk 0:00:17.7]} 31... Qf5 {[%clk 0:00:34.7]} 32. Qe7
{[%clk 0:00:10.5]} 32... h5 {[%clk 0:00:22.4]} 33. Rxf4 {[%clk 0:00:02.4]} 33...
exf4 {[%clk 0:00:17.3]} 34. Qe2 {[%clk 0:00:02.6]} 34... h4 {[%clk 0:00:13.2]}
35. Rf3 {[%clk 0:00:02.3]} 35... hxg3 {[%clk 0:00:12]} 36. fxg3 {[%clk
0:00:03.1]} 36... Rxg3+ {[%clk 0:00:11.6]} 37. Rxg3 {[%clk 0:00:02.6]} 37...
fxg3 {[%clk 0:00:12.5]} 38. Kg2 {[%clk 0:00:02.8]} 38... Qf4 {[%clk 0:00:09.8]}
39. Qe8+ {[%clk 0:00:02.8]} 39... Kg7 {[%clk 0:00:10.1]} 40. Qe7+ {[%clk
0:00:03.3]} 40... Kg6 {[%clk 0:00:10.2]} 41. Qe6+ {[%clk 0:00:03.7]} 41... Kg5
{[%clk 0:00:10.1]} 42. Qg8+ {[%clk 0:00:04.1]} 42... Kf5 {[%clk 0:00:10]} 43.
Qxg3 {[%clk 0:00:02.3]} 43... Qxg3+ {[%clk 0:00:09.9]} 44. Kxg3 {[%clk
0:00:03.2]} 44... Ke4 {[%clk 0:00:10.7]} 45. Kf2 {[%clk 0:00:03]} 45... Kd3
{[%clk 0:00:10.9]} 46. Ke1 {[%clk 0:00:03.2]} 46... Kc2 {[%clk 0:00:11.2]} 47.
Ke2 {[%clk 0:00:03]} 47... Kb2 {[%clk 0:00:11.9]} 48. Kd2 {[%clk 0:00:03.6]}
48... Kxa2 {[%clk 0:00:12.6]} 49. Kc3 {[%clk 0:00:04.5]} 49... c5 {[%clk
0:00:12.8]} 50. b4 {[%clk 0:00:04.7]} 50... b6 {[%clk 0:00:12.2]} 51. bxc5
{[%clk 0:00:01.7]} 51... bxc5 {[%clk 0:00:12.4]} 52. Kc2 {[%clk 0:00:02]} 52...
Ka3 {[%clk 0:00:12.5]} 53. Kc3 {[%clk 0:00:02.5]} 53... a5 {[%clk 0:00:12.8]}
54. Kc2 {[%clk 0:00:01.5]} 54... Kb4 {[%clk 0:00:13]} 55. Kd3 {[%clk 0:00:01.5]}
55... Kb3 {[%clk 0:00:13.9]} 56. Kd2 {[%clk 0:00:01.5]} 56... Kxc4 {[%clk
0:00:14.8]} 57. Kc2 {[%clk 0:00:01.8]} 57... Kb4 {[%clk 0:00:15.7]} 58. Kb2
{[%clk 0:00:02.3]} 58... a4 {[%clk 0:00:16.6]} 59. Ka2 {[%clk 0:00:02.8]} 59...
a3 {[%clk 0:00:17.5]} 60. Kb1 {[%clk 0:00:03.2]} 60... Kb3 {[%clk 0:00:17.8]}
61. Ka1 {[%clk 0:00:04.1]} 61... c4 {[%clk 0:00:18.2]} 62. Kb1 {[%clk 0:00:05]}
62... Kc3 {[%clk 0:00:17.5]} 63. Ka1 {[%clk 0:00:05.9]} 63... Kd2 {[%clk
0:00:17.9]} 64. Kb1 {[%clk 0:00:06.8]} 64... c3 {[%clk 0:00:18.6]} 65. Ka1
{[%clk 0:00:07.3]} 65... c2 {[%clk 0:00:18.9]} 0-1